bitfinex-derivatives/quotes_BTCF0:USTF0_20210705
["timestamp","ask_amount","ask_price","bid_price","bid_amount"]
[1625528945288,3.60528304,33875.0,33874.0,0.94156371]
[1625528946238,3.60528304,33875.0,33874.0,0.70098827]
[1625528947239,3.54628304,33875.0,33874.0,0.70098827]
[1625528947339,3.54828304,33875.0,33874.0,0.70098827]
[1625528947438,3.54628304,33875.0,33874.0,0.70098827]
[1625528947640,3.60528304,33875.0,33874.0,0.70098827]
[1625528947739,3.86607304,33875.0,33874.0,0.70098827]
[1625528951702,1.30112046,33875.0,33874.0,0.70098827]
[1625528951803,3.86135169,33875.0,33874.0,0.70098827]
[1625528953560,3.92035169,33875.0,33874.0,0.70098827]
[1625528953761,3.92035169,33875.0,33874.0,0.26507242]
[1625528954413,3.92035169,33875.0,33874.0,0.09069004]
[1625528954964,3.86135169,33875.0,33874.0,0.17787543]
[1625528955265,3.86135169,33875.0,33874.0,0.70095292]
[1625528955967,3.86135169,33875.0,33874.0,0.00349885]
[1625528956316,3.86135169,33875.0,33874.0,0.17785316]
[1625528956716,3.86135169,33875.0,33874.0,0.00349885]
[1625528959074,3.92035169,33875.0,33874.0,0.00349885]
[1625528959426,3.92035169,33875.0,33874.0,0.26500446]
[1625528960127,5.45613894,33875.0,33874.0,0.00349885]
[1625528960227,5.45613894,33875.0,33869.0,0.26156191]
[1625528960430,0.48115088,33870.0,33869.0,0.26156191]
[1625528960529,4.34953627,33870.0,33868.0,0.26156552]
[1625528960630,4.40853627,33870.0,33868.0,0.26156552]
[1625528960729,4.40853627,33870.0,33869.0,0.00349921]
[1625528960930,0.65615088,33870.0,33869.0,0.00349921]
[1625528961331,0.65615088,33870.0,33867.0,0.00349927]
[1625528961432,10.71266337,33870.0,33867.0,0.00349927]
[1625528961831,10.71266337,33870.0,33866.0,0.00349925]
[1625528961932,3.7489411,33868.0,33866.0,0.00349925]
[1625528962031,0.057,33867.0,33866.0,0.00349925]
[1625528962130,0.116,33867.0,33866.0,0.00349925]
[1625528962230,0.175,33867.0,33866.0,0.00349925]
[1625528962384,3.92454681,33867.0,33866.0,0.09065618]
[1625528962482,4.40569769,33867.0,33866.0,0.09065618]
[1625528963184,4.34669769,33867.0,33866.0,0.09065618]
[1625528963285,4.40569769,33867.0,33866.0,0.09065618]
[1625528963384,4.34669769,33867.0,33866.0,0.09065618]
[1625528963788,4.28969769,33867.0,33866.0,0.09065618]
[1625528963990,2.86730358,33867.0,33866.0,0.17772911]
[1625528964341,1.67431243,33867.0,33866.0,1.28204305]
[1625528964440,1.67431243,33867.0,33866.0,5.66814305]
[1625528966845,1.67431243,33867.0,33866.0,6.71329295]
[1625528967397,1.67431243,33867.0,33866.0,7.93262588]
[1625528967947,1.67431243,33867.0,33866.0,6.71329295]
[1625528969599,1.67431243,33867.0,33866.0,2.32719295]
[1625528970551,1.73131243,33867.0,33866.0,2.32719295]
[1625528970954,2.755634,33867.0,33866.0,2.32719295]
[1625528971853,2.755634,33867.0,33866.0,2.26819295]
[1625528972055,2.814634,33867.0,33866.0,2.26819295]
[1625528972156,2.814634,33867.0,33866.0,1.22304305]
[1625528972256,2.755634,33867.0,33866.0,1.22304305]
[1625528972507,4.18680094,33867.0,33866.0,0.52616088]
[1625528972607,4.24580094,33867.0,33866.0,0.52616088]
[1625528973108,4.24580094,33867.0,33866.0,0.1776999]
[1625528973410,4.24580094,33867.0,33866.0,0.52609879]
[1625528975463,4.24580094,33867.0,33866.0,0.52259954]
[1625528975563,3.76465006,33867.0,33866.0,0.17418465]
[1625528975665,3.52740006,33867.0,33866.0,0.1776837]
[1625528975964,1.14032157,33867.0,33866.0,0.1776837]
[1625528976265,2.33404086,33867.0,33866.0,0.1776837]
[1625528976619,2.81519174,33867.0,33866.0,0.1776837]
[1625528977318,2.75819174,33867.0,33866.0,0.1776837]
[1625528977518,2.75819174,33867.0,33866.0,0.52600541]
[1625528978219,2.81519174,33867.0,33866.0,0.52600541]
[1625528978471,2.75819174,33867.0,33866.0,0.52600541]
[1625528979022,2.75819174,33867.0,33866.0,1.22268537]
[1625528979374,2.75819174,33867.0,33866.0,0.52600541]
[1625528979573,2.81519174,33867.0,33866.0,0.52600541]
[1625528980173,4.00814663,33867.0,33866.0,0.52600541]
[1625528980373,3.95114663,33867.0,33866.0,0.52600541]
[1625528980475,4.00814663,33867.0,33866.0,0.52600541]
[1625528980724,3.95114663,33867.0,33866.0,0.52600541]
[1625528980924,3.89214663,33867.0,33866.0,0.52600541]
[1625528981025,3.89214663,33867.0,33866.0,0.83860541]
[1625528981225,3.89214663,33867.0,33866.0,1.53527873]
[1625528981226,2.69919174,33867.0,33866.0,1.53527873]
[1625528981575,1.67487017,33867.0,33866.0,2.58032027]
[1625528982577,2.69666209,33867.0,33866.0,2.58032027]
[1625528982778,2.75366209,33867.0,33866.0,2.58032027]
[1625528982980,2.75366209,33867.0,33866.0,1.53527873]
[1625528983330,2.75366209,33867.0,33866.0,0.83860541]
[1625528983530,2.75366209,33867.0,33866.0,0.52600541]
[1625528984182,2.75366209,33867.0,33866.0,1.22279832]
[1625528985131,2.81266209,33867.0,33866.0,0.52600541]
[1625528985635,4.00500472,33867.0,33866.0,0.17770728]
[1625528986885,4.00500472,33867.0,33866.0,0.52619463]
[1625528987188,3.88900472,33867.0,33866.0,0.52619463]
[1625528987287,3.88900472,33867.0,33866.0,0.76030463]
[1625528987386,3.94600472,33867.0,33866.0,0.76030463]
[1625528987837,3.94600472,33867.0,33866.0,1.4573393]
[1625528989441,2.75366209,33867.0,33866.0,1.4573393]
[1625528989896,2.75366209,33867.0,33866.0,2.50315886]
[1625528991594,3.95050721,33867.0,33866.0,2.50315886]
[1625528992896,3.89350721,33867.0,33866.0,2.50315886]
[1625528993347,3.40095633,33867.0,33866.0,2.56215886]
[1625528993447,3.31095633,33867.0,33866.0,2.57090532]
[1625528993546,3.31095633,33867.0,33866.0,2.62990532]
[1625528993798,0.22591967,33867.0,33866.0,5.25623388]
[1625528994399,0.08587166,33868.0,33866.0,6.81487723]
[1625528994605,0.08587166,33868.0,33867.0,0.01098905]
[1625528994805,0.08589023,33869.0,33867.0,6.30607861]
[1625528994900,0.08589023,33869.0,33868.0,0.0892]
[1625528995001,0.08589023,33869.0,33868.0,0.06998749]
[1625528995112,0.08589023,33869.0,33868.0,0.01098749]
[1625528995204,0.08589023,33869.0,33868.0,0.0034983]
[1625528995302,0.08590174,33870.0,33868.0,5.75762736]
[1625528995405,0.08590174,33870.0,33868.0,5.81662736]
[1625528995610,0.08590174,33870.0,33869.0,4.18571608]
[1625528995611,0.5144,33870.0,33869.0,4.18571608]
[1625528995706,0.5144,33870.0,33869.0,4.18921453]
[1625528996003,1.54275066,33870.0,33869.0,4.18921453]
[1625528996505,1.54275066,33870.0,33869.0,2.79397584]
[1625528996962,0.5144,33870.0,33869.0,4.18925447]
[1625528997060,0.5144,33870.0,33869.0,4.24825447]
[1625528998763,0.5144,33870.0,33869.0,4.25924277]
[1625528998963,1.028994,33872.0,33869.0,5.82872204]
[1625528998964,0.42924414,33871.0,33869.0,5.82872204]
[1625528999177,0.42924414,33871.0,33869.0,5.81773374]
[1625528999365,0.08595176,33871.0,33870.0,4.18451319]
[1625528999465,0.08595176,33871.0,33870.0,4.24701133]
[1625528999715,0.42925797,33872.0,33870.0,4.24701133]
[1625528999965,0.42925797,33872.0,33871.0,0.00349814]
[1625529000215,0.08597384,33872.0,33871.0,4.18770941]
[1625529000318,0.08597384,33872.0,33871.0,4.54022941]
[1625529000667,0.51471061,33872.0,33871.0,4.54022941]
[1625529000765,0.51471061,33872.0,33871.0,4.78080485]
[1625529001869,0.51471061,33872.0,33871.0,4.72180485]
[1625529001969,0.51471061,33872.0,33871.0,4.78080485]
[1625529002420,0.51471061,33872.0,33871.0,4.72180485]
[1625529002670,0.34302876,33872.0,33871.0,4.72180485]
[1625529002975,0.85741095,33872.0,33871.0,4.72180485]
[1625529003072,0.84851095,33872.0,33871.0,4.72180485]
[1625529003324,0.51438219,33872.0,33871.0,4.72180485]
[1625529004075,0.51438219,33872.0,33871.0,3.32706776]
[1625529004224,0.51438219,33872.0,33871.0,3.03354776]
[1625529004493,0.51438219,33872.0,33871.0,3.09254776]
[1625529004581,0.51438219,33872.0,33871.0,3.39469776]
[1625529004876,0.51438219,33872.0,33871.0,4.73032163]
[1625529005129,0.08585931,33872.0,33871.0,4.73032163]
[1625529007732,0.32644335,33873.0,33871.0,4.73032163]
[1625529007831,0.32644335,33873.0,33871.0,4.78932163]
[1625529008034,0.32644335,33873.0,33872.0,0.00349844]
[1625529008134,0.32644335,33873.0,33872.0,0.06249844]
[1625529008232,0.32644335,33873.0,33872.0,1.97952536]
[1625529008332,0.32644335,33873.0,33872.0,4.24510263]
[1625529008734,0.24057544,33873.0,33872.0,4.24510263]
[1625529008833,0.23837544,33873.0,33872.0,4.24510263]
[1625529013844,0.32419381,33873.0,33872.0,4.24510263]
[1625529014244,0.32419381,33873.0,33872.0,4.18610263]
[1625529014700,0.32419381,33873.0,33872.0,2.79190123]
[1625529015198,0.23837544,33873.0,33872.0,2.79190123]
[1625529016201,0.75165075,33873.0,33872.0,2.79190123]
[1625529016301,0.80865075,33873.0,33872.0,2.79190123]
[1625529017002,0.80865075,33873.0,33872.0,1.57197501]
[1625529018054,0.86765075,33873.0,33872.0,1.57197501]
[1625529018458,1.89264699,33873.0,33872.0,1.57197501]
[1625529019059,0.86765075,33873.0,33872.0,1.57197501]
[1625529020211,0.80865075,33873.0,33872.0,1.57197501]
[1625529020763,0.80865075,33873.0,33872.0,2.7911909]
[1625529020863,0.80865075,33873.0,33872.0,2.8501909]
[1625529021063,0.75165075,33873.0,33872.0,2.8501909]
[1625529021566,0.32397379,33873.0,33872.0,2.8501909]
[1625529022718,0.32397379,33873.0,33872.0,4.24359497]
[1625529023367,0.38097379,33873.0,33872.0,4.24359497]
[1625529023469,0.38097379,33873.0,33872.0,4.18459497]
[1625529023969,1.83405686,33873.0,33872.0,1.57197501]
[1625529026723,1.83405686,33873.0,33872.0,0.52632396]
[1625529027225,3.03028174,33873.0,33872.0,0.52632396]
[1625529038903,3.08928174,33873.0,33872.0,0.52632396]
[1625529040256,4.45649309,33873.0,33872.0,0.52632396]
[1625529045472,4.21811765,33873.0,33872.0,0.52632396]
[1625529047173,4.69926853,33873.0,33872.0,0.52632396]
[1625529050927,4.64026853,33873.0,33872.0,0.83193396]
[1625529051128,4.39969309,33873.0,33872.0,1.1602094]
[1625529051227,4.06391765,33873.0,33872.0,1.1602094]
[1625529051328,4.05511765,33873.0,33872.0,1.2192094]
[1625529051427,3.98141765,33873.0,33872.0,1.2782094]
[1625529051532,3.97281765,33873.0,33872.0,1.7201074]
[1625529051629,3.97281765,33873.0,33872.0,1.72885354]
[1625529051730,3.97281765,33873.0,33872.0,2.77614656]
[1625529051828,3.97281765,33873.0,33872.0,2.76740042]
[1625529051929,3.97281765,33873.0,33872.0,2.77840151]
[1625529052031,3.94801765,33873.0,33872.0,2.77840151]
[1625529052129,1.02650979,33875.0,33872.0,6.96681578]
[1625529052228,1.02650979,33875.0,33874.0,5.0951]
[1625529052329,1.02650979,33875.0,33874.0,5.1541]
[1625529052429,1.02650979,33875.0,33874.0,6.55019473]
[1625529052529,1.02657419,33876.0,33874.0,8.81884867]
[1625529052629,1.01867419,33876.0,33874.0,8.82234699]
[1625529052882,1.01867419,33876.0,33875.0,3.66475539]
[1625529052981,1.01867419,33876.0,33875.0,3.66825371]
[1625529053182,1.01867419,33876.0,33875.0,3.90882915]
[1625529053480,0.88587419,33876.0,33875.0,3.90882915]
[1625529053581,1.34350546,33876.0,33875.0,4.60699402]
[1625529053830,1.34350546,33876.0,33875.0,5.04707702]
[1625529053982,0.68493525,33877.0,33875.0,6.61791572]
[1625529054082,0.68493525,33877.0,33876.0,0.0873]
[1625529054430,0.68493525,33877.0,33876.0,3.84456343]
[1625529054529,0.68493525,33877.0,33876.0,3.84806148]
[1625529054932,0.68493525,33877.0,33876.0,3.85906239]
[1625529055181,0.68493525,33877.0,33876.0,4.09963783]
[1625529055283,0.68493525,33877.0,33876.0,4.08863692]
[1625529055382,0.68525132,33878.0,33876.0,5.65943744]
[1625529055782,0.68525132,33878.0,33877.0,0.00349799]
[1625529055884,0.68525132,33878.0,33877.0,3.31858642]
[1625529056182,0.68525132,33878.0,33877.0,3.76410042]
[1625529057135,0.68075132,33878.0,33877.0,3.76410042]
[1625529057237,5.132e-05,33878.0,33877.0,4.00467586]
[1625529060695,1.19808548,33881.0,33877.0,4.00467586]
[1625529061046,1.19808548,33881.0,33878.0,0.00349803]
[1625529061196,1.19808548,33881.0,33880.0,1.46140637]
[1625529061297,1.19808548,33881.0,33880.0,1.67390637]
[1625529061596,1.19808548,33881.0,33880.0,1.67740445]
[1625529062248,1.19808548,33881.0,33880.0,0.45657352]
[1625529063504,1.09548548,33881.0,33880.0,0.45657352]
[1625529063754,1.09548548,33881.0,33880.0,4.72207352]
[1625529065708,1.09548548,33881.0,33880.0,0.45657352]
[1625529065811,1.09548548,33881.0,33880.0,0.24407352]
[1625529065959,1.09548548,33881.0,33880.0,0.33117352]
[1625529066261,1.15248548,33881.0,33880.0,0.33117352]
[1625529066360,5.31898548,33881.0,33880.0,0.33117352]
[1625529067011,5.31898548,33881.0,33880.0,0.4183438]
[1625529067012,6.6886945,33881.0,33880.0,0.4183438]
[1625529067515,6.6886945,33881.0,33880.0,0.3312438]
[1625529067867,6.6886945,33881.0,33880.0,0.24407352]
[1625529068066,2.5221945,33881.0,33880.0,0.24407352]
[1625529070524,2.8504745,33881.0,33880.0,0.00349808]
[1625529070624,2.8504745,33881.0,33880.0,0.0906709]
[1625529070823,2.8504745,33881.0,33880.0,0.08717282]
[1625529070923,2.8504745,33881.0,33878.0,0.09067511]
[1625529071022,4.45199638,33881.0,33878.0,0.09067511]
[1625529071122,4.45199638,33881.0,33880.0,0.00349864]
[1625529071276,4.69257182,33881.0,33880.0,0.00349864]
[1625529071374,4.69257182,33881.0,33879.0,0.0034988]
[1625529071473,2.22737732,33881.0,33879.0,0.0034988]
[1625529071674,2.22737732,33881.0,33880.0,0.00349884]
[1625529071873,2.22737732,33881.0,33879.0,0.00349886]
[1625529071974,3.59782011,33881.0,33879.0,0.00349886]
[1625529072377,2.91177013,33880.0,33879.0,0.00349886]
[1625529072475,2.96877013,33880.0,33879.0,0.00349886]
[1625529072574,3.02777013,33880.0,33878.0,0.00349892]
[1625529072876,3.02777013,33880.0,33879.0,0.00349892]
[1625529073078,3.02777013,33880.0,33878.0,0.0034989]
[1625529073280,0.24057544,33879.0,33878.0,0.0034989]
[1625529073379,0.35657544,33879.0,33877.0,0.24057544]
[1625529073579,3.26719822,33879.0,33877.0,0.24057544]
[1625529073680,3.26719822,33879.0,33878.0,0.00349893]
[1625529079245,1.72629035,33879.0,33878.0,0.0906758]
[1625529080292,1.72629035,33879.0,33878.0,0.00349893]
[1625529081494,1.72629035,33879.0,33878.0,0.09067594]
[1625529082045,1.72089035,33879.0,33878.0,0.09067594]
[1625529083697,3.14249464,33879.0,33878.0,0.09067594]
[1625529084248,4.17047342,33879.0,33878.0,0.09067594]
[1625529086001,4.17047342,33879.0,33878.0,3.74417594]
[1625529086551,2.80075851,33879.0,33878.0,3.74417594]
[1625529086651,2.57844851,33879.0,33878.0,3.74417594]
[1625529086906,3.94941092,33879.0,33878.0,3.65699893]
[1625529088408,3.94941092,33879.0,33878.0,3.65699865]
[1625529088710,3.83341092,33879.0,33878.0,3.65699865]
[1625529088910,3.83341092,33879.0,33878.0,3.71599865]
[1625529089008,3.83341092,33879.0,33878.0,3.65699865]
[1625529089459,3.89241092,33879.0,33878.0,3.65699865]
[1625529090716,3.89241092,33879.0,33878.0,0.00349865]
[1625529091265,9.19881092,33879.0,33878.0,0.00349865]
[1625529096220,9.25581092,33879.0,33878.0,0.00349865]
[1625529096821,9.25581092,33879.0,33878.0,0.09068642]
[1625529099131,3.94941092,33879.0,33878.0,0.09068642]
[1625529099783,3.94941092,33879.0,33878.0,0.00349865]
[1625529104442,5.4842799,33879.0,33878.0,0.00349865]
[1625529104692,5.4842799,33879.0,33878.0,0.0907184]
[1625529105043,5.4842799,33879.0,33878.0,0.00349865]
[1625529107297,5.4842799,33879.0,33878.0,0.09073666]
[1625529116570,5.4842799,33879.0,33878.0,0.00349865]
[1625529117074,3.94941092,33879.0,33878.0,0.00349865]
[1625529117622,4.63165269,33879.0,33878.0,0.00349865]
[1625529118073,6.16608416,33879.0,33878.0,0.09077135]
[1625529122238,6.16608416,33879.0,33878.0,0.00349865]
[1625529123189,6.16608416,33879.0,33878.0,0.35273754]
[1625529124342,6.16608416,33879.0,33878.0,0.44123754]
[1625529124542,6.16608416,33879.0,33878.0,0.35273754]
[1625529124844,6.49614416,33879.0,33878.0,0.35273754]
[1625529124942,6.51118481,33879.0,33878.0,0.35273754]
[1625529125695,6.51118481,33879.0,33878.0,0.4400755]
[1625529126146,6.51118481,33879.0,33878.0,0.35273754]
[1625529126645,6.51118481,33879.0,33878.0,0.44010559]
[1625529128251,6.51118481,33879.0,33878.0,0.35273754]
[1625529128450,6.57018481,33879.0,33878.0,0.35273754]
[1625529128752,8.27204151,33879.0,33878.0,0.35273754]
[1625529128861,8.27204151,33879.0,33878.0,0.00349865]
[1625529129052,8.21304151,33879.0,33878.0,0.00349865]
[1625529129152,8.21304151,33879.0,33877.0,0.00349916]
[1625529129253,8.27204151,33879.0,33878.0,0.0892]
[1625529129451,8.27204151,33879.0,33878.0,0.0926992]
[1625529129753,8.27204151,33879.0,33878.0,0.0034992]
[1625529129962,8.27204151,33879.0,33868.0,1.39807243]
[1625529130060,0.059,33875.0,33868.0,1.39807243]
[1625529130212,0.059,33875.0,33859.0,1.74736526]
[1625529130273,0.118,33875.0,33859.0,1.74736526]
[1625529130362,0.557,33874.0,33859.0,1.74736526]
[1625529130458,0.63106304,33874.0,33859.0,1.74736526]
[1625529130559,1.52862818,33869.0,33859.0,1.57303957]
[1625529130657,0.057,33868.0,33859.0,1.57303957]
[1625529130758,0.116,33868.0,33859.0,1.57303957]
[1625529130859,0.175,33868.0,33859.0,1.57303957]
[1625529130958,0.175,33868.0,33860.0,0.00350019]
[1625529131059,1.52359703,33861.0,33860.0,0.00350019]
[1625529131159,1.93088703,33861.0,33860.0,0.00350019]
[1625529131259,5.66188703,33861.0,33860.0,0.00350019]
[1625529131561,5.66188703,33861.0,33856.0,0.00350032]
[1625529131861,0.53815088,33857.0,33856.0,0.00350032]
[1625529131963,0.59715088,33857.0,33856.0,0.00350032]
[1625529132962,0.48115088,33857.0,33856.0,0.00350032]
[1625529133063,0.54015088,33857.0,33856.0,0.00350032]
[1625529133161,0.59715088,33857.0,33856.0,0.00350032]
[1625529134516,0.59715088,33857.0,33855.0,0.24057544]
[1625529137226,0.59715088,33857.0,33856.0,0.0887]
[1625529137324,0.59715088,33857.0,33855.0,0.24057544]
[1625529139629,0.59715088,33857.0,33850.0,4.65277544]
[1625529139733,0.59715088,33857.0,33850.0,4.71177544]
[1625529139879,0.24057544,33851.0,33850.0,4.71177544]
[1625529139980,0.48052544,33851.0,33850.0,4.71177544]
[1625529140230,0.48052544,33851.0,33850.0,0.29957544]
[1625529140383,0.48052544,33851.0,33850.0,0.3030762]
[1625529140683,0.48052544,33851.0,33850.0,0.3902762]
[1625529141236,0.48052544,33851.0,33850.0,0.38677544]
[1625529141985,0.48052544,33851.0,33850.0,0.39027614]
[1625529142486,0.48052544,33851.0,33850.0,0.38677544]
[1625529142586,0.48052544,33851.0,33850.0,0.90811304]
[1625529142787,0.48052544,33851.0,33850.0,0.91161344]
[1625529143037,0.48052544,33851.0,33850.0,0.90811304]
[1625529144389,0.48052544,33851.0,33850.0,0.38677544]
[1625529144940,0.48052544,33851.0,33850.0,0.90785999]
[1625529146493,0.48052544,33851.0,33850.0,0.91136049]
[1625529146947,0.48052544,33851.0,33850.0,0.56386923]
[1625529147045,0.48052544,33851.0,33850.0,0.56036873]
[1625529147595,0.48052544,33851.0,33850.0,0.56386928]
[1625529150251,0.48052544,33851.0,33850.0,4.13796928]
[1625529150605,0.47292544,33851.0,33850.0,4.13796928]
[1625529150702,0.23297544,33851.0,33850.0,4.13796928]
[1625529151655,0.23297544,33851.0,33850.0,4.4849832]
[1625529152006,0.23297544,33851.0,33850.0,4.13791128]
[1625529155317,0.23297544,33851.0,33850.0,3.96437599]
[1625529156418,0.23297544,33851.0,33850.0,4.13788866]
[1625529156517,0.23297544,33851.0,33850.0,0.56378866]
[1625529156917,0.23297544,33851.0,33850.0,0.39027599]
[1625529157419,0.23297544,33851.0,33850.0,0.24407599]
[1625529157618,0.29197544,33851.0,33850.0,0.24407599]
[1625529157721,0.34897544,33851.0,33850.0,0.00350055]
[1625529158070,0.58955088,33851.0,33850.0,0.00350055]
[1625529158171,0.82487088,33851.0,33850.0,0.00350055]
[1625529158571,0.82487088,33851.0,33849.0,0.00350071]
[1625529159722,0.88387088,33851.0,33848.0,0.00350071]
[1625529159923,0.88387088,33851.0,33850.0,0.00350112]
[1625529160026,1.3873237,33851.0,33850.0,0.00350112]
[1625529160225,1.3873237,33851.0,33849.0,0.0035013]
[1625529160425,1.3873237,33851.0,33844.0,0.0035013]
[1625529160727,0.057,33849.0,33844.0,0.0035013]
[1625529160825,0.057,33845.0,33844.0,0.0035013]
[1625529160928,0.116,33845.0,33844.0,0.0035013]
[1625529161025,0.175,33845.0,33844.0,0.0035013]
[1625529162179,0.65615088,33845.0,33844.0,0.0035013]
[1625529163881,0.65615088,33845.0,33839.0,0.00350142]
[1625529164133,0.65615088,33845.0,33844.0,0.00350142]
[1625529164434,0.65615088,33845.0,33839.0,0.00350142]
[1625529166240,0.24057544,33840.0,33839.0,0.00350142]
[1625529166341,0.29957544,33840.0,33839.0,0.00350142]
[1625529169950,0.35657544,33840.0,33839.0,0.00350142]
[1625529171001,0.68188544,33840.0,33839.0,0.00350142]
[1625529171102,0.74088544,33840.0,33839.0,0.00350142]
[1625529171302,0.74088544,33840.0,33838.0,0.00350197]
[1625529171403,4.39778544,33840.0,33838.0,0.00350197]
[1625529171556,4.39778544,33840.0,33839.0,0.00350192]
[1625529171805,4.39778544,33840.0,33838.0,0.00350192]
[1625529172105,4.39778544,33840.0,33832.0,0.17336716]
[1625529172106,4.56561719,33840.0,33836.0,0.00350192]
[1625529172206,0.48115088,33837.0,33836.0,0.00350192]
[1625529172306,0.53815088,33837.0,33836.0,0.00350192]
[1625529172406,0.59715088,33837.0,33836.0,0.00350192]
[1625529172608,0.59715088,33837.0,33831.0,0.00350188]
[1625529172857,0.59715088,33837.0,33836.0,0.00350186]
[1625529173157,0.59715088,33837.0,33831.0,0.00350186]
[1625529173257,0.59715088,33837.0,33831.0,0.06250186]
[1625529173559,0.54015088,33837.0,33831.0,0.06250186]
[1625529173663,0.54015088,33837.0,33832.0,0.00350175]
[1625529173764,0.54015088,33837.0,33832.0,0.06250175]
[1625529174217,0.54015088,33837.0,33833.0,0.00350168]
[1625529174313,0.54015088,33837.0,33833.0,0.06250168]
[1625529174766,0.54015088,33837.0,33836.0,3.9553]
[1625529174863,0.48115088,33837.0,33836.0,4.26563]
[1625529174966,0.057,33839.0,33836.0,4.41213]
[1625529175065,0.50309321,33842.0,33836.0,4.41563149]
[1625529175266,0.50309321,33842.0,33836.0,4.47463149]
[1625529175365,0.36509321,33842.0,33837.0,0.00350134]
[1625529175464,0.5,33871.0,33837.0,0.00350134]
[1625529175465,0.16789639,33843.0,33837.0,0.06250134]
[1625529175566,0.16789639,33843.0,33837.0,0.12150134]
[1625529175664,0.12349639,33843.0,33837.0,0.12150134]
[1625529175865,0.12349639,33843.0,33838.0,0.00350109]
[1625529175966,0.16818187,33849.0,33839.0,0.17327498]
[1625529176063,0.16818187,33849.0,33840.0,0.0886]
[1625529176163,0.16818187,33849.0,33840.0,0.1476]
[1625529176267,0.9133,33851.0,33848.0,0.24057544]
[1625529176366,0.9133,33851.0,33848.0,0.45942544]
[1625529176668,0.24057544,33852.0,33849.0,0.00350084]
[1625529176865,0.29957544,33852.0,33849.0,0.00350084]
[1625529177067,0.29957544,33852.0,33851.0,5.141]
[1625529177166,0.29957544,33852.0,33849.0,0.00350084]
[1625529177467,0.29957544,33852.0,33848.0,0.24057544]
[1625529177868,1.30865941,33852.0,33848.0,0.24057544]
[1625529178319,1.00964233,33851.0,33848.0,0.24057544]
[1625529178519,1.06864233,33851.0,33848.0,0.24057544]
[1625529179821,1.06864233,33851.0,33849.0,0.00350089]
[1625529179921,1.06864233,33851.0,33849.0,0.21081089]
[1625529180370,1.06864233,33851.0,33849.0,0.20731]
[1625529181427,1.06864233,33851.0,33850.0,0.00350087]
[1625529182826,1.12564233,33851.0,33848.0,0.24057544]
[1625529182927,1.44343233,33851.0,33848.0,0.24057544]
[1625529183029,1.50243233,33851.0,33848.0,0.24057544]
[1625529183277,2.18979925,33849.0,33848.0,0.24057544]
[1625529183376,2.24679925,33849.0,33848.0,0.24057544]
[1625529183478,2.24879925,33849.0,33848.0,0.24057544]
[1625529183576,2.30779925,33849.0,33848.0,0.24057544]
[1625529183678,2.24879925,33849.0,33848.0,0.24407665]
[1625529184279,1.06968953,33849.0,33848.0,0.24407665]
[1625529184379,1.31026497,33849.0,33848.0,0.24407665]
[1625529186332,1.36726497,33849.0,33848.0,0.24407665]
[1625529186535,1.42626497,33849.0,33848.0,0.24407665]
[1625529186834,3.94908119,33849.0,33848.0,0.24057544]
[1625529188435,3.94908119,33849.0,33848.0,0.24407687]
[1625529189037,5.46368007,33849.0,33848.0,0.00350143]
[1625529189135,5.72280007,33849.0,33848.0,0.00350143]
[1625529189536,5.72280007,33849.0,33845.0,0.0035015]
[1625529189736,5.72280007,33849.0,33848.0,0.0035015]
[1625529189937,2.18929432,33849.0,33848.0,0.0035015]
[1625529190036,2.18929432,33849.0,33845.0,0.0035015]
[1625529190289,0.73015625,33846.0,33845.0,0.0035015]
[1625529190388,1.08873169,33846.0,33845.0,0.0035015]
[1625529195051,1.08873169,33846.0,33837.0,0.00350164]
[1625529195755,2.92399338,33838.0,33837.0,0.00350164]
[1625529195852,3.24676338,33838.0,33837.0,0.00350164]
[1625529195952,3.30576338,33838.0,33837.0,0.00350164]
[1625529196151,7.57696338,33838.0,33837.0,0.00350164]
[1625529196503,9.40686411,33838.0,33837.0,0.00350164]
[1625529196902,9.40686411,33838.0,33832.0,0.24057544]
[1625529196903,9.40686411,33838.0,33833.0,0.00350223]
[1625529197302,1.68546744,33834.0,33833.0,0.00350223]
[1625529197404,1.86046744,33834.0,33833.0,0.00350223]
[1625529198562,2.10104288,33834.0,33830.0,0.00350232]
[1625529198760,2.10104288,33834.0,33833.0,0.00350232]
[1625529199059,2.10104288,33834.0,33830.0,0.00350229]
[1625529199060,0.41557544,33834.0,33830.0,0.00350229]
[1625529199311,0.41557544,33834.0,33833.0,0.00350229]
[1625529199611,0.41557544,33834.0,33830.0,0.00350231]
[1625529199710,0.5,33833.0,33814.0,1.73996801]
[1625529199811,0.5,33833.0,33824.0,0.21737761]
[1625529199912,0.057,33832.0,33824.0,0.21737761]
[1625529200211,0.175,33832.0,33824.0,0.21737761]
[1625529200312,0.175,33832.0,33819.0,1.56597121]
[1625529200313,4.6964,33825.0,33822.0,1.04410916]
[1625529200414,0.057,33824.0,33822.0,1.04410916]
[1625529200513,0.72172632,33823.0,33822.0,1.04410916]
[1625529200623,0.83772632,33823.0,33822.0,1.04410916]
[1625529200712,0.89672632,33823.0,33822.0,1.04410916]
[1625529201015,0.89672632,33823.0,33810.0,2.70498193]
[1625529201016,2.23809323,33823.0,33810.0,0.9648]
[1625529201214,0.057,33821.0,33810.0,0.9648]
[1625529201312,0.116,33821.0,33810.0,0.9648]
[1625529201413,0.5,33820.0,33811.0,0.00350405]
[1625529201514,0.057,33819.0,33811.0,0.00350405]
[1625529201615,3.6887,33812.0,33811.0,0.00350405]
[1625529201714,0.057,33811.0,33810.0,0.9648]
[1625529201816,0.116,33811.0,33810.0,0.9648]
[1625529202014,0.175,33811.0,33810.0,0.9648]
[1625529202513,0.89672632,33811.0,33810.0,0.9648]
[1625529202913,0.89672632,33811.0,33810.0,0.81686819]
[1625529203116,0.83772632,33811.0,33810.0,0.81686819]
[1625529203216,0.83772632,33811.0,33810.0,0.75786819]
[1625529203314,0.89672632,33811.0,33810.0,0.75786819]
[1625529203615,0.83772632,33811.0,33810.0,0.75786819]
[1625529203712,0.89672632,33811.0,33810.0,0.75786819]
[1625529204319,0.89672632,33811.0,33793.0,4.3372]
[1625529204420,0.89672632,33811.0,33793.0,4.3962]
[1625529204517,0.48115088,33794.0,33793.0,4.3962]
[1625529204616,0.48115088,33794.0,33793.0,4.4552]
[1625529205469,0.48115088,33794.0,33793.0,4.45870548]
[1625529205567,0.44645088,33794.0,33793.0,4.45870548]
[1625529205668,0.13377544,33794.0,33793.0,4.45870548]
[1625529206369,0.13377544,33794.0,33793.0,4.39970548]
[1625529206471,0.13377544,33794.0,33793.0,4.34070548]
[1625529206569,0.37435088,33794.0,33793.0,4.45870548]
[1625529206669,0.37435088,33794.0,33793.0,4.39970548]
[1625529206772,0.37435088,33794.0,33793.0,4.4552]
[1625529207772,0.37435088,33794.0,33793.0,4.3962]
[1625529207925,0.37435088,33794.0,33793.0,4.4552]
[1625529208176,0.37435088,33794.0,33793.0,4.3962]
[1625529208677,0.37435088,33794.0,33793.0,4.3372]
[1625529209228,0.37435088,33794.0,33791.0,0.24057544]
[1625529209329,0.37435088,33794.0,33792.0,0.0892]
[1625529209431,0.37435088,33794.0,33791.0,0.24057544]